[Event "FIDE World Junior U20-ch Girls 2025"]
[Site "Petrovac"]
[Date "2025.02.28"]
[Round "3.44"]
[White "Li, Anna Sofie"]
[Black "Djukic, Katarina"]
[Result "1/2-1/2"]
[Annotator "ChessBase"]
[ECO "B56"]
[WhiteElo "2016"]
[BlackElo "1786"]
[PlyCount "121"]
[EventDate "2025.02.23"]
[EventType "swiss"]
[EventCountry "MNE"]
[SourceTitle "playchess.com"]
[Source "ChessBase"]
[SourceQuality "1"]
[TimeControl "40/5400+30:1800+30"]

1. e4 {[%emt 0:00:03]} c5 {[%emt 0:00:05]} 2. Nf3 {[%emt 0:00:05]} d6 {[%emt 0:00:06]} 3. d4 {[%emt 0:00:05]} cxd4 {[%emt 0:00:04]} 4. Nxd4 {[%emt 0:00:07]} Nf6 {[%emt 0:00:05]} 5. Nc3 {[%emt 0:00:07]} Nc6 {[%emt 0:00:04]} 6. f3 {[%emt 0:03:32]} e5 {[%emt 0:00:13]} 7. Nb3 {[%emt 0:00:37]} Be6 {[%emt 0:00:08]} 8. Be3 {[%emt 0:00:27]} d5 {[%emt 0:00:25]} 9. exd5 {[%emt 0:04:12]} Nxd5 {[%emt 0:00:08]} 10. Nxd5 {[%emt 0:02:06]} Qxd5 {[%emt 0:00:08]} 11. Qxd5 {[%emt 0:03:18]} Bxd5 {[%emt 0:00:07]} 12. c4 {[%emt 0:01:51]} Bb4+ {[%emt 0:06:18]} 13. Kf2 {[%emt 0:02:50]} Be6 {[%emt 0:01:40]} 14. Nc5 {[%emt 0:05:33]} Bc8 {[%emt 0:19:57]} 15. a3 {[%emt 0:02:34]} Ba5 {[%emt 0:00:45]} 16. g4 {[%emt 0:14:17]} Bc7 {[%emt 0:03:50]} 17. Bd3 {[%emt 0:07:07]} O-O {[%emt 0:13:18]} 18. Be4 {[%emt 0:04:27]} Bb6 {[%emt 0:17:18]} 19. Rhd1 {[%emt 0:13:38]} Rd8 {[%emt 0:13:48]} 20. b4 {[%emt 0:08:10]} Nd4 {[%emt 0:09:07]} 21. Bxd4 {[%emt 0:10:30]} exd4 {[%emt 0:02:11]} 22. Nxb7 {[%emt 0:01:12]} Bxb7 {[%emt 0:00:36]} 23. Bxb7 {[%emt 0:00:09]} Rab8 {[%emt 0:00:11]} 24. Bd5 {[%emt 0:03:42]} a5 {[%emt 0:03:47]} 25. Rab1 {[%emt 0:05:05]} Kf8 {[%emt 0:01:51]} 26. Be4 {[%emt 0:03:24]} Bc7 {[%emt 0:02:07]} 27. c5 {[%emt 0:01:25]} Bxh2 {[%emt 0:04:50]} 28. b5 {[%emt 0:01:33]} Rdc8 {[%emt 0:00:40]} 29. Rdc1 {[%emt 0:00:50]} Bf4 {[%emt 0:00:30]} 30. Rc2 {[%emt 0:00:41]} Be3+ {[%emt 0:00:15]} 31. Kf1 {[%emt 0:01:28]} d3 {[%emt 0:00:17]} 32. Bxd3 {[%emt 0:00:11]} Rxc5 {[%emt 0:00:26]} 33. Rxc5 {[%emt 0:01:00]} Bxc5 {[%emt 0:00:03]} 34. a4 {[%emt 0:00:11]} Ke7 {[%emt 0:01:14]} 35. Rc1 {[%emt 0:00:20]} Kd6 {[%emt 0:00:41]} 36. Be4 {[%emt 0:00:52]} h6 {[%emt 0:00:36]} 37. Ke2 {[%emt 0:00:21]} f6 {[%emt 0:00:30]} 38. f4 {[%emt 0:00:43]} g5 {[%emt 0:00:28]} 39. Kf3 {[%emt 0:00:26]} Rc8 {[%emt 0:00:29]} 40. Rh1 {[%emt 0:00:46]} Rh8 {[%emt 0:00:32]} 41. Bc6 {[%emt 0:04:00]} Kc7 {[%emt 0:03:31]} 42. Ke4 {[%emt 0:01:43]} Rd8 {[%emt 0:13:31]} 43. Bd5 {[%emt 0:05:40]} gxf4 {[%emt 0:03:23]} 44. Rxh6 {[%emt 0:03:11]} Rd6 {[%emt 0:04:09]} 45. Rh7+ {[%emt 0:03:06]} Rd7 {[%emt 0:00:25]} 46. Rh6 {[%emt 0:02:49]} Rd6 {[%emt 0:00:16]} 47. Rh5 {[%emt 0:05:37]} Be3 {[%emt 0:02:16]} 48. Kd3 {[%emt 0:01:35]} Rd7 {[%emt 0:06:29]} 49. Kc4 {[%emt 0:02:47]} Rg7 {[%emt 0:00:28]} 50. Bf3 {[%emt 0:01:23]} Rd7 {[%emt 0:00:28]} 51. Rd5 {[%emt 0:01:05]} Rxd5 {[%emt 0:00:30]} 52. Kxd5 {[%emt 0:00:12]} Kb6 {[%emt 0:00:33]} 53. Ke4 {[%emt 0:00:39]} Bc1 {[%emt 0:00:26]} 54. Kf5 {[%emt 0:00:17]} Bb2 {[%emt 0:00:09]} 55. Kxf4 {[%emt 0:00:06]} Be5+ {[%emt 0:00:11]} 56. Kf5 {[%emt 0:00:17]} Bc3 {[%emt 0:00:13]} 57. Ke6 {[%emt 0:00:41]} Bd4 {[%emt 0:00:20]} 58. Kd5 {[%emt 0:00:32]} Bc3 {[%emt 0:00:13]} 59. Ke6 {[%emt 0:00:08]} Bd4 {[%emt 0:00:05]} 60. Kd5 {[%emt 0:00:06]} Bc3 {[%emt 0:00:12]} 61. Ke6 {[%emt 0:00:04]} 1/2-1/2

[Event "FIDE World Junior U20-ch Girls 2025"]
[Site "Petrovac"]
[Date "2025.02.28"]
[Round "3.45"]
[White "Saraci, Rinesa"]
[Black "Ostensson, Julia"]
[Result "0-1"]
[Annotator "ChessBase"]
[ECO "E97"]
[WhiteElo "1751"]
[BlackElo "1979"]
[PlyCount "98"]
[EventDate "2025.02.23"]
[EventType "swiss"]
[EventCountry "MNE"]
[SourceTitle "playchess.com"]
[Source "ChessBase"]
[SourceQuality "1"]
[TimeControl "40/5400+30:1800+30"]

1. d4 {[%emt 0:00:05]} Nf6 {[%emt 0:00:05]} 2. c4 {[%emt 0:00:09]} g6 {[%emt 0:00:05]} 3. Nc3 {[%emt 0:00:09]} Bg7 {[%emt 0:00:05]} 4. e4 {[%emt 0:00:20]} d6 {[%emt 0:00:04]} 5. Be2 {[%emt 0:00:24]} O-O {[%emt 0:00:11]} 6. Nf3 {[%emt 0:00:33]} e5 {[%emt 0:00:06]} 7. O-O {[%emt 0:04:36]} Nc6 {[%emt 0:00:26]} 8. h3 {[%emt 0:02:51]} exd4 {[%emt 0:03:07]} 9. Nxd4 {[%emt 0:05:16]} Bd7 {[%emt 0:09:49]} 10. Be3 {[%emt 0:05:56]} Re8 {[%emt 0:00:05]} 11. Bf3 {[%emt 0:03:53]} Ne5 {[%emt 0:01:30]} 12. Be2 {[%emt 0:05:29]} Bc6 {[%emt 0:04:21]} 13. f4 {[%emt 0:07:51]} Ned7 {[%emt 0:01:30]} 14. Nxc6 {[%emt 0:04:39]} bxc6 {[%emt 0:00:06]} 15. Bf3 {[%emt 0:01:10]} Qe7 {[%emt 0:27:07]} 16. Re1 {[%emt 0:08:57]} Rab8 {[%emt 0:01:53]} 17. Rb1 {[%emt 0:04:54]} Nb6 {[%emt 0:04:33]} 18. Qe2 {[%emt 0:14:25]} Qe6 {[%emt 0:01:14]} 19. b3 {[%emt 0:04:17]} Nfd7 {[%emt 0:00:46]} 20. Rbc1 {[%emt 0:01:05]} c5 {[%emt 0:07:09]} 21. Nb5 {[%emt 0:03:26]} c6 {[%emt 0:13:07]} 22. Nc7 {[%emt 0:01:55]} Qe7 {[%emt 0:02:20]} 23. Nxe8 {[%emt 0:01:55]} Rxe8 {[%emt 0:00:03]} 24. Qd2 {[%emt 0:03:00]} Qf6 {[%emt 0:08:49]} 25. Rcd1 {[%emt 0:03:30]} Bf8 {[%emt 0:00:39]} 26. Bf2 {[%emt 0:02:59]} h6 {[%emt 0:08:20]} 27. Bg4 {[%emt 0:01:17]} Re7 {[%emt 0:05:46]} 28. Bf3 {[%emt 0:06:56]} Re8 {[%emt 0:00:07]} 29. Bg3 {[%emt 0:00:43]} Qe7 {[%emt 0:01:04]} 30. f5 {[%emt 0:00:35]} Ne5 {[%emt 0:00:10]} 31. Bxe5 {[%emt 0:00:38]} Qxe5 {[%emt 0:00:12]} 32. fxg6 {[%emt 0:00:32]} fxg6 {[%emt 0:00:04]} 33. Qf2 {[%emt 0:01:23]} Bg7 {[%emt 0:00:09]} 34. Re2 {[%emt 0:00:41]} Qe7 {[%emt 0:00:51]} 35. Qg3 {[%emt 0:00:13]} Bd4+ {[%emt 0:01:34]} 36. Kh1 {[%emt 0:00:10]} Kh7 {[%emt 0:00:08]} 37. Rf1 {[%emt 0:00:44]} Nd7 {[%emt 0:00:06]} 38. Qf4 {[%emt 0:01:15]} Rf8 {[%emt 0:00:09]} 39. Qc1 {[%emt 0:00:27]} Ne5 {[%emt 0:00:28]} 40. Qc2 {[%emt 0:00:39]} Qh4 {[%emt 0:00:22]} 41. Qc1 {[%emt 0:10:08]} Nd3 {[%emt 0:12:50]} 42. Qd2 {[%emt 0:07:43]} Be5 {[%emt 0:12:17]} 43. g3 {[%emt 0:10:03]} Qxh3+ {[%emt 0:00:10]} 44. Kg1 {[%emt 0:00:12]} Bd4+ {[%emt 0:01:11]} 45. Re3 {[%emt 0:00:37]} Qxg3+ {[%emt 0:00:43]} 46. Kh1 {[%emt 0:00:31]} Qh3+ {[%emt 0:00:27]} 47. Kg1 {[%emt 0:00:38]} Rxf3 {[%emt 0:00:31]} 48. Rfxf3 {[%emt 0:00:52]} Qxf3 {[%emt 0:00:06]} 49. Qxd3 {[%emt 0:00:40]} Bxe3+ {[%emt 0:00:16]} 0-1

[Event "FIDE World Junior U20-ch Girls 2025"]
[Site "Petrovac"]
[Date "2025.02.28"]
[Round "3.46"]
[White "Petricenco, Ana"]
[Black "Sele, Timea"]
[Result "1-0"]
[Annotator "ChessBase"]
[ECO "C60"]
[WhiteElo "1973"]
[BlackElo "1678"]
[PlyCount "59"]
[EventDate "2025.02.23"]
[EventType "swiss"]
[EventCountry "MNE"]
[SourceTitle "playchess.com"]
[Source "ChessBase"]
[SourceQuality "1"]
[TimeControl "40/5400+30:1800+30"]

1. e4 {[%emt 0:00:04]} e5 {[%emt 0:00:04]} 2. Nf3 {[%emt 0:00:09]} Nc6 {[%emt 0:00:08]} 3. Bb5 {[%emt 0:00:09]} g6 {[%emt 0:00:07]} 4. O-O {[%emt 0:00:16]} Bg7 {[%emt 0:00:09]} 5. c3 {[%emt 0:00:39]} a6 {[%emt 0:00:44]} 6. Ba4 {[%emt 0:00:47]} Nge7 {[%emt 0:00:56]} 7. d4 {[%emt 0:01:51]} exd4 {[%emt 0:00:43]} 8. cxd4 {[%emt 0:00:07]} b5 {[%emt 0:00:05]} 9. Bb3 {[%emt 0:00:41]} Na5 {[%emt 0:00:10]} 10. Bc2 {[%emt 0:04:23]} O-O {[%emt 0:00:51]} 11. Nc3 {[%emt 0:03:43]} d5 {[%emt 0:03:24]} 12. exd5 {[%emt 0:10:32]} Nxd5 {[%emt 0:02:47]} 13. Ne4 {[%emt 0:08:50]} h6 {[%emt 0:21:08]} 14. h3 {[%emt 0:06:10]} Re8 {[%emt 0:04:32]} 15. Nc5 {[%emt 0:06:02]} Nc4 {[%emt 0:12:02]} 16. Re1 {[%emt 0:09:25]} Nd6 {[%emt 0:07:33]} 17. Bb3 {[%emt 0:08:48]} c6 {[%emt 0:08:58]} 18. Ne5 {[%emt 0:03:46]} Qc7 {[%emt 0:05:47]} 19. Bd2 {[%emt 0:10:20]} Nb7 {[%emt 0:04:20]} 20. Ncd3 {[%emt 0:03:24]} Bd7 {[%emt 0:07:38]} 21. Qf3 {[%emt 0:03:15]} Be6 {[%emt 0:05:41]} 22. Rac1 {[%emt 0:01:22]} Nd8 {[%emt 0:00:32]} 23. Bxd5 {[%emt 0:02:10]} Bxd5 {[%emt 0:05:47]} 24. Qxd5 {[%emt 0:00:34]} Re6 {[%emt 0:00:39]} 25. Qf3 {[%emt 0:00:36]} Rf6 {[%emt 0:00:56]} 26. Qd1 {[%emt 0:00:52]} Qd6 {[%emt 0:00:32]} 27. Ng4 {[%emt 0:00:55]} Re6 {[%emt 0:00:49]} 28. Nxh6+ {[%emt 0:01:45]} Kh7 {[%emt 0:01:14]} 29. Rxe6 {[%emt 0:00:25]} Qxe6 {[%emt 0:01:07]} 30. Ng4 {[%emt 0:00:13]} 1-0

[Event "FIDE World Junior U20-ch Girls 2025"]
[Site "Petrovac"]
[Date "2025.02.28"]
[Round "4.1"]
[White "Zhurova, Anna"]
[Black "Allahverdiyeva, Ayan"]
[Result "1/2-1/2"]
[Annotator "RC"]
[ECO "B90"]
[WhiteElo "2307"]
[BlackElo "2284"]
[PlyCount "167"]
[EventDate "2025.02.23"]
[EventType "swiss"]
[EventCountry "MNE"]
[SourceTitle "playchess.com"]
[Source "ChessBase"]
[SourceQuality "1"]
[TimeControl "40/5400+30:1800+30"]

1. e4 {[%emt 0:00:01]} c5 {[%emt 0:00:03]} 2. Nf3 {[%emt 0:00:11]} d6 {[%emt 0:00:04]} 3. d4 {[%emt 0:00:33]} cxd4 {[%emt 0:00:05]} 4. Nxd4 {[%emt 0:00:26]} Nf6 {[%emt 0:00:24]} 5. Nc3 {[%emt 0:00:20]} a6 {[%emt 0:00:04]} 6. Be3 {[%emt 0:00:45]} e5 {[%emt 0:00:06]} 7. Nf3 {[%emt 0:00:31]} Qc7 {[%emt 0:02:01]} 8. a4 {[%emt 0:01:28]} Be7 {[%emt 0:00:22]} 9. Be2 {[%emt 0:00:18]} O-O {[%emt 0:00:30]} 10. O-O {[%emt 0:00:19]} Nbd7 {[%emt 0:01:48]} 11. Nd2 {[%emt 0:00:58]} b6 {[%emt 0:01:44]} 12. Nc4 {[%emt 0:01:19]} Rb8 {[%emt 0:07:14]} 13. f3 {[%emt 0:01:33]} Nc5 {[%emt 0:02:47]} 14. Bf2 {[%emt 0:02:20]} Ne6 {[%emt 0:08:52]} 15. Ne3 {[%emt 0:07:10]} Nf4 {[%emt 0:04:27]} 16. Bc4 {[%emt 0:02:45]} Bb7 {[%emt 0:06:54]} 17. Kh1 {[%emt 0:08:09]} Rfc8 {[%emt 0:26:25]} 18. Bb3 {[%emt 0:09:25]} Qd8 {[%emt 0:00:28]} 19. Qd2 {[%emt 0:04:34]} Ba8 {[%emt 0:07:39]} 20. Nf5 {[%emt 0:07:56]} Bf8 {[%emt 0:08:12]} 21. Rfd1 {[%emt 0:01:29]} Ne8 {[%emt 0:04:31]} 22. Bh4 {[%emt 0:02:57]} Qd7 {[%emt 0:00:30]} 23. Bg3 {[%emt 0:01:12]} Ng6 {[%emt 0:02:13]} 24. Ne3 {[%emt 0:09:13]} Be7 {[%emt 0:02:23]} 25. Nf5 {[%emt 0:04:21]} Qd8 {[%emt 0:01:30]} 26. Qd3 {[%emt 0:01:18]} Bb7 {[%emt 0:01:28]} 27. Nd5 {[%emt 0:03:30]} Bf8 {[%emt 0:00:35]} 28. Bf2 {[%emt 0:01:22]} Bxd5 {[%emt 0:00:50]} 29. Qxd5 {[%emt 0:00:23]} Qf6 {[%emt 0:01:53]} 30. Qd3 {[%emt 0:01:07]} Nf4 {[%emt 0:00:14]} 31. Qxa6 {[%emt 0:02:10]} d5 {[%emt 0:00:03]} 32. c3 {[%emt 0:03:46]} dxe4 {[%emt 0:03:57]} 33. fxe4 {[%emt 0:00:27]} Qg6 {[%emt 0:00:50]} 34. Qf1 {[%emt 0:01:39]} Nf6 {[%emt 0:00:04]} 35. Nd6 {[%emt 0:09:09]} Bxd6 {[%emt 0:01:08]} 36. Rxd6 {[%emt 0:00:01]} Qxe4 {[%emt 0:02:53]} 37. Bg3 {[%emt 0:04:17]} Qf5 {[%emt 0:02:23]} 38. Bxf4 {[%emt 0:01:23]} exf4 {[%emt 0:00:06]} 39. Rd4 {[%emt 0:01:56]} Ne4 {[%emt 0:00:20]} 40. Qf3 {[%emt 0:04:46]} Re8 {[%emt 0:00:49]} 41. Kg1 {[%emt 0:31:07]} Rbd8 {[%emt 0:05:51]} 42. Re1 {[%emt 0:00:00]} Nc5 {[%emt 0:11:33]} 43. Rxd8 {[%emt 0:00:00]} Rxd8 {[%emt 0:00:04]} 44. Qc6 {[%emt 0:00:00]} Rf8 {[%emt 0:03:16]} 45. Bc4 {[%emt 0:00:00]} g6 {[%emt 0:03:38]} 46. b4 {[%emt 0:00:00]} Rc8 {[%emt 0:02:35]} 47. Qb5 {[%emt 0:00:00]} f3 {[%emt 0:04:05]} 48. gxf3 {[%emt 0:00:00]} Qxf3 {[%emt 0:02:05]} 49. Re8+ {[%emt 0:01:30]} Rxe8 {[%emt 0:01:23]} 50. Qxe8+ {[%emt 0:00:01]} Kg7 {[%emt 0:00:03]} 51. Qe5+ {[%emt 0:01:50]} Kg8 {[%emt 0:01:25]} 52. Be2 {[%emt 0:00:28]} Qe4 {[%emt 0:00:20]} 53. Qxe4 {[%emt 0:00:19]} Nxe4 {[%emt 0:00:03]} 54. a5 {[%emt 0:00:14]} bxa5 {[%emt 0:00:18]} 55. bxa5 {[%emt 0:00:34]} Nxc3 {[%emt 0:01:59]} 56. a6 {[%emt 0:02:58]} Nd5 {[%emt 0:00:05]} 57. a7 {[%emt 0:01:01]} Nc7 {[%emt 0:00:03]} 58. Bf3 {[%emt 0:00:10]} Kf8 {[%emt 0:00:23]} 59. Kf2 {[%emt 0:00:04]} Ke7 {[%emt 0:00:02]} 60. Ke3 {[%emt 0:00:06]} Kd6 {[%emt 0:00:01]} 61. Kf4 {[%emt 0:00:38]} f6 {[%emt 0:00:21]} 62. Bb7 {[%emt 0:00:46]} Kc5 {[%emt 0:00:54]} 63. Ke4 {[%emt 0:00:15]} Kb6 {[%emt 0:00:35]} 64. a8=Q {[%emt 0:00:09]} Nxa8 {[%emt 0:00:02]} 65. Bxa8 {[%emt 0:00:05]} Kc5 {[%emt 0:00:27]} 66. Bd5 {[%emt 0:00:07]} Kd6 {[%emt 0:00:09]} 67. Kd4 {[%emt 0:00:10]} Ke7 {[%emt 0:01:52]} 68. Bc4 {[%emt 0:00:10]} Kf8 {[%emt 0:00:41]} 69. Kd5 {[%emt 0:00:06]} Kg7 {[%emt 0:00:05]} 70. Ke6 {[%emt 0:00:09]} h5 {[%emt 0:00:03]} 71. Be2 {[%emt 0:00:24]} h4 {[%emt 0:00:05]} 72. Bg4 {[%emt 0:00:15]} f5 {[%emt 0:01:08]} 73. Bh3 {[%emt 0:00:14]} g5 {[%emt 0:00:11]} 74. Kxf5 {[%emt 0:00:43]} g4 {[%emt 0:00:16]} 75. Kxg4 {[%emt 0:00:04]} Kh8 {[%emt 0:00:14]} 76. Kg5 {[%emt 0:00:06]} Kg7 {[%emt 0:00:02]} 77. Kf5 {[%emt 0:00:06]} Kh8 {[%emt 0:00:26]} 78. Kf6 {[%emt 0:00:18]} Kg8 {[%emt 0:00:05]} 79. Kg6 {[%emt 0:00:10]} Kh8 {[%emt 0:00:03]} 80. Kh6 {[%emt 0:01:05]} Kg8 {[%emt 0:00:03]} 81. Be6+ {[%emt 0:00:04]} Kh8 {[%emt 0:00:02]} 82. Bf5 {[%emt 0:00:05]} Kg8 {[%emt 0:00:07]} 83. h3 {[%emt 0:00:07]} Kh8 {[%emt 0:00:03]} 84. Bh7 {[%emt 0:00:04]} 1/2-1/2

[Event "FIDE World Junior U20-ch Girls 2025"]
[Site "Petrovac"]
[Date "2025.02.28"]
[Round "4.2"]
[White "Gaal, Zsoka"]
[Black "Kurmangaliyeva, Liya"]
[Result "1/2-1/2"]
[Annotator "RC"]
[ECO "D27"]
[WhiteElo "2404"]
[BlackElo "2251"]
[PlyCount "139"]
[EventDate "2025.02.23"]
[EventType "swiss"]
[EventCountry "MNE"]
[SourceTitle "playchess.com"]
[Source "ChessBase"]
[SourceQuality "1"]
[TimeControl "40/5400+30:1800+30"]

1. d4 {[%emt 0:00:02]} d5 {[%emt 0:00:19]} 2. c4 {[%emt 0:00:22]} dxc4 {[%emt 0:00:25]} 3. Nf3 {[%emt 0:00:41]} Nf6 {[%emt 0:00:21]} 4. e3 {[%emt 0:00:33]} e6 {[%emt 0:00:34]} 5. Bxc4 {[%emt 0:00:09]} c5 {[%emt 0:00:17]} 6. O-O {[%emt 0:00:35]} a6 {[%emt 0:00:32]} 7. Be2 {[%emt 0:00:54]} Nbd7 {[%emt 0:02:13]} 8. Nbd2 {[%emt 0:01:08]} Be7 {[%emt 0:08:19]} 9. b3 {[%emt 0:02:25]} O-O {[%emt 0:10:58]} 10. Bb2 {[%emt 0:00:07]} b6 {[%emt 0:01:20]} 11. dxc5 {[%emt 0:22:13]} Bxc5 {[%emt 0:08:04]} 12. Nd4 {[%emt 0:03:07]} Bb7 {[%emt 0:04:38]} 13. Bf3 {[%emt 0:01:22]} Bxf3 {[%emt 0:04:39]} 14. Qxf3 {[%emt 0:00:57]} Rc8 {[%emt 0:01:21]} 15. Rfd1 {[%emt 0:04:09]} b5 {[%emt 0:05:33]} 16. a4 {[%emt 0:09:20]} Qb6 {[%emt 0:02:38]} 17. axb5 {[%emt 0:00:47]} axb5 {[%emt 0:00:18]} 18. Qe2 {[%emt 0:07:55]} Rb8 {[%emt 0:02:03]} 19. Nb1 {[%emt 0:01:16]} e5 {[%emt 0:06:55]} 20. Nc2 {[%emt 0:06:24]} Qe6 {[%emt 0:02:11]} 21. b4 {[%emt 0:06:43]} Be7 {[%emt 0:01:40]} 22. Ra7 {[%emt 0:05:16]} Rfc8 {[%emt 0:12:54]} 23. Nba3 {[%emt 0:02:48]} Nb6 {[%emt 0:06:34]} 24. Ra6 {[%emt 0:04:19]} Qf5 {[%emt 0:02:24]} 25. e4 {[%emt 0:02:17]} Qxe4 {[%emt 0:01:07]} 26. Qxe4 {[%emt 0:00:36]} Nxe4 {[%emt 0:00:04]} 27. Bxe5 {[%emt 0:00:09]} Rb7 {[%emt 0:00:17]} 28. Re1 {[%emt 0:02:05]} Ng5 {[%emt 0:02:45]} 29. f4 {[%emt 0:04:02]} Ne6 {[%emt 0:00:28]} 30. f5 {[%emt 0:00:05]} Nf8 {[%emt 0:01:43]} 31. Rd1 {[%emt 0:05:38]} Nfd7 {[%emt 0:02:03]} 32. Bd6 {[%emt 0:01:10]} Bf6 {[%emt 0:04:33]} 33. Ne3 {[%emt 0:00:30]} Bg5 {[%emt 0:02:20]} 34. Nd5 {[%emt 0:01:25]} Nc4 {[%emt 0:00:32]} 35. Bg3 {[%emt 0:01:44]} h5 {[%emt 0:01:11]} 36. h4 {[%emt 0:01:24]} Bf6 {[%emt 0:01:15]} 37. Nc2 {[%emt 0:01:24]} Kh7 {[%emt 0:00:46]} 38. Bf2 {[%emt 0:01:31]} Be5 {[%emt 0:00:59]} 39. Ne7 {[%emt 0:01:23]} Re8 {[%emt 0:00:41]} 40. Nc6 {[%emt 0:00:09]} Bf6 {[%emt 0:01:53]} 41. Ra7 {[%emt 0:07:33]} Rxa7 {[%emt 0:03:19]} 42. Nxa7 {[%emt 0:00:25]} Nde5 {[%emt 0:01:06]} 43. Nxb5 {[%emt 0:01:53]} Ng4 {[%emt 0:00:49]} 44. Bd4 {[%emt 0:09:39]} Bxh4 {[%emt 0:03:47]} 45. Nc3 {[%emt 0:00:06]} Nd6 {[%emt 0:02:17]} 46. Rf1 {[%emt 0:01:46]} Rc8 {[%emt 0:05:50]} 47. Bc5 {[%emt 0:03:04]} Nb7 {[%emt 0:00:50]} 48. Bd4 {[%emt 0:00:15]} Bf6 {[%emt 0:03:27]} 49. Bxf6 {[%emt 0:01:02]} Nxf6 {[%emt 0:00:04]} 50. Rf3 {[%emt 0:00:09]} Nd6 {[%emt 0:00:27]} 51. Rd3 {[%emt 0:01:30]} Nde4 {[%emt 0:06:13]} 52. Nxe4 {[%emt 0:02:07]} Nxe4 {[%emt 0:00:04]} 53. Ne3 {[%emt 0:00:59]} Rc1+ {[%emt 0:01:15]} 54. Rd1 {[%emt 0:00:14]} Rc3 {[%emt 0:00:30]} 55. Nd5 {[%emt 0:00:39]} Rb3 {[%emt 0:00:26]} 56. Re1 {[%emt 0:01:05]} Ng3 {[%emt 0:02:18]} 57. f6 {[%emt 0:00:11]} g5 {[%emt 0:01:18]} 58. Re3 {[%emt 0:01:25]} Rb1+ {[%emt 0:00:42]} 59. Kf2 {[%emt 0:00:06]} h4 {[%emt 0:00:29]} 60. Kf3 {[%emt 0:00:36]} Kh6 {[%emt 0:00:57]} 61. Re8 {[%emt 0:00:36]} Rd1 {[%emt 0:02:48]} 62. Ne3 {[%emt 0:03:33]} Rd4 {[%emt 0:01:06]} 63. Ng4+ {[%emt 0:02:33]} Kh7 {[%emt 0:00:23]} 64. Ne5 {[%emt 0:00:40]} Rxb4 {[%emt 0:01:04]} 65. Nxf7 {[%emt 0:00:20]} Rf4+ {[%emt 0:00:44]} 66. Ke3 {[%emt 0:00:06]} Kg6 {[%emt 0:00:24]} 67. Nh8+ {[%emt 0:00:47]} Kxf6 {[%emt 0:00:33]} 68. Rf8+ {[%emt 0:00:06]} Kg7 {[%emt 0:00:09]} 69. Rxf4 {[%emt 0:00:07]} gxf4+ {[%emt 0:00:21]} 70. Kxf4 {[%emt 0:00:08]} 1/2-1/2

[Event "FIDE World Junior U20-ch Girls 2025"]
[Site "Petrovac"]
[Date "2025.02.28"]
[Round "4.3"]
[White "Kaldarova, Ayaulym"]
[Black "Nurman, Alua"]
[Result "0-1"]
[Annotator "ChessBase"]
[ECO "A34"]
[WhiteElo "2248"]
[BlackElo "2336"]
[PlyCount "56"]
[EventDate "2025.02.23"]
[EventType "swiss"]
[EventCountry "MNE"]
[SourceTitle "playchess.com"]
[Source "ChessBase"]
[SourceQuality "1"]
[TimeControl "40/5400+30:1800+30"]

1. Nf3 {[%emt 0:00:11]} c5 {[%emt 0:00:18]} 2. c4 {[%emt 0:00:48]} Nf6 {[%emt 0:00:25]} 3. Nc3 {[%emt 0:01:31]} Nc6 {[%emt 0:00:09]} 4. g3 {[%emt 0:00:52]} d5 {[%emt 0:00:09]} 5. d4 {[%emt 0:01:28]} cxd4 {[%emt 0:00:35]} 6. Nxd4 {[%emt 0:00:44]} e5 {[%emt 0:00:09]} 7. Nxc6 {[%emt 0:01:16]} bxc6 {[%emt 0:00:02]} 8. Bg2 {[%emt 0:03:00]} d4 {[%emt 0:00:28]} 9. Bxc6+ {[%emt 0:10:22]} Bd7 {[%emt 0:03:56]} 10. Bxa8 {[%emt 0:01:11]} Qxa8 {[%emt 0:00:05]} 11. Nd5 {[%emt 0:00:12]} Nxd5 {[%emt 0:00:02]} 12. cxd5 {[%emt 0:00:08]} Qxd5 {[%emt 0:00:04]} 13. f3 {[%emt 0:02:02]} Bc5 {[%emt 0:00:55]} 14. Qd3 {[%emt 0:03:24]} O-O {[%emt 0:01:24]} 15. a3 {[%emt 0:04:22]} f5 {[%emt 0:26:27]} 16. e4 {[%emt 0:11:50]} fxe4 {[%emt 0:19:22]} 17. fxe4 {[%emt 0:00:48]} Qb7 {[%emt 0:00:32]} 18. Bd2 {[%emt 0:18:57]} Kh8 {[%emt 0:20:19]} 19. a4 {[%emt 0:12:19]} Bh3 {[%emt 0:04:39]} 20. Rg1 {[%emt 0:03:02]} Qxb2 {[%emt 0:02:42]} 21. Rb1 {[%emt 0:01:46]} Qa2 {[%emt 0:00:03]} 22. g4 {[%emt 0:01:41]} Qf7 {[%emt 0:06:42]} 23. Kd1 {[%emt 0:01:00]} Qf2 {[%emt 0:01:33]} 24. Qxh3 {[%emt 0:18:56]} Qxg1+ {[%emt 0:00:28]} 25. Be1 {[%emt 0:00:31]} Bb6 {[%emt 0:01:34]} 26. Qh4 {[%emt 0:00:36]} Qe3 {[%emt 0:00:49]} 27. Qg3 {[%emt 0:00:31]} Qxe4 {[%emt 0:00:37]} 28. Rb3 {[%emt 0:00:09]} Rc8 {[%emt 0:00:43]} 0-1

[Event "FIDE World Junior U20-ch Girls 2025"]
[Site "Petrovac"]
[Date "2025.02.28"]
[Round "4.4"]
[White "Kairbekova, Amina"]
[Black "Kaliakhmet, Elnaz"]
[Result "1-0"]
[Annotator "ChessBase"]
[ECO "B33"]
[WhiteElo "2336"]
[BlackElo "2242"]
[PlyCount "75"]
[EventDate "2025.02.23"]
[EventType "swiss"]
[EventCountry "MNE"]
[SourceTitle "playchess.com"]
[Source "ChessBase"]
[SourceQuality "1"]
[TimeControl "40/5400+30:1800+30"]

1. e4 {[%emt 0:00:01]} c5 {[%emt 0:00:06]} 2. Nf3 {[%emt 0:00:05]} Nc6 {[%emt 0:00:05]} 3. d4 {[%emt 0:00:04]} cxd4 {[%emt 0:00:04]} 4. Nxd4 {[%emt 0:00:03]} Nf6 {[%emt 0:00:04]} 5. Nc3 {[%emt 0:00:05]} e5 {[%emt 0:00:07]} 6. Nde2 {[%emt 0:00:03]} Bb4 {[%emt 0:11:55]} 7. a3 {[%emt 0:00:19]} Ba5 {[%emt 0:01:34]} 8. b4 {[%emt 0:00:10]} Bb6 {[%emt 0:00:06]} 9. Qd6 {[%emt 0:00:06]} Qe7 {[%emt 0:03:31]} 10. Qxe7+ {[%emt 0:00:28]} Nxe7 {[%emt 0:00:41]} 11. Bg5 {[%emt 0:00:20]} d6 {[%emt 0:07:58]} 12. Bxf6 {[%emt 0:03:32]} gxf6 {[%emt 0:00:13]} 13. Nb5 {[%emt 0:00:55]} O-O {[%emt 0:05:40]} 14. Nxd6 {[%emt 0:00:49]} f5 {[%emt 0:06:14]} 15. c4 {[%emt 0:10:45]} fxe4 {[%emt 0:07:08]} 16. c5 {[%emt 0:00:07]} Bc7 {[%emt 0:00:08]} 17. Nc3 {[%emt 0:03:05]} Bxd6 {[%emt 0:21:59]} 18. cxd6 {[%emt 0:00:08]} Nc6 {[%emt 0:01:42]} 19. Nxe4 {[%emt 0:01:23]} Bf5 {[%emt 0:01:03]} 20. Bd3 {[%emt 0:02:14]} Kg7 {[%emt 0:00:13]} 21. Rd1 {[%emt 0:09:16]} a5 {[%emt 0:03:42]} 22. O-O {[%emt 0:16:55]} axb4 {[%emt 0:00:39]} 23. axb4 {[%emt 0:00:05]} Nxb4 {[%emt 0:02:17]} 24. Bb1 {[%emt 0:00:05]} Na6 {[%emt 0:11:48]} 25. Rd5 {[%emt 0:02:05]} f6 {[%emt 0:01:06]} 26. Ng3 {[%emt 0:03:32]} Bd7 {[%emt 0:02:00]} 27. f4 {[%emt 0:11:45]} Nb4 {[%emt 0:02:26]} 28. Rc5 {[%emt 0:01:29]} Na6 {[%emt 0:00:08]} 29. Rc3 {[%emt 0:02:47]} Rae8 {[%emt 0:01:59]} 30. Nh5+ {[%emt 0:03:57]} Kh6 {[%emt 0:06:21]} 31. f5 {[%emt 0:02:48]} Kxh5 {[%emt 0:00:06]} 32. Rh3+ {[%emt 0:00:06]} Kg5 {[%emt 0:00:05]} 33. Rxh7 {[%emt 0:00:09]} Bc6 {[%emt 0:01:20]} 34. Bc2 {[%emt 0:01:26]} Rh8 {[%emt 0:01:23]} 35. h4+ {[%emt 0:00:18]} Kg4 {[%emt 0:00:01]} 36. Bd1+ {[%emt 0:00:14]} Kg3 {[%emt 0:00:06]} 37. Rg7+ {[%emt 0:00:03]} Kxh4 {[%emt 0:01:27]} 38. Kf2 {[%emt 0:00:04]} 1-0